[Event "XX Gran Hotel Bali-B 2023"]
[Site "Benidorm"]
[Date "2023.12.02"]
[Round "2.3"]
[White "Rios Torondell, Jaume"]
[Black "Talledo Lagos, Cesar Frank"]
[Result "0-1"]
[ECO "B22"]
[WhiteElo "1794"]
[BlackElo "1993"]
[Annotator "NA RC"]
[PlyCount "82"]
[EventDate "2023.12.02"]
[EventType "swiss"]
[EventCountry "ESP"]
[SourceTitle "playchess.com"]
[Source "ChessBase"]
[SourceQuality "1"]
[TimeControl "5400+30"]

1. e4 {[%emt 0:13:22]} g6 {[%emt 0:00:22]} 2. c3 {[%emt 0:02:26]} c5 {[%emt 0:00:32]} 3. d4 {[%emt 0:00:50]} cxd4 {[%emt 0:00:28]} 4. cxd4 {[%emt 0:00:02]} Bg7 {[%emt 0:00:09]} 5. Nc3 {[%emt 0:00:19]} d6 {[%emt 0:00:32]} 6. Be3 {[%emt 0:03:54]} Nf6 {[%emt 0:00:43]} 7. Be2 {[%emt 0:00:33]} Nc6 {[%emt 0:01:26]} 8. Qd2 {[%emt 0:02:15]} a6 {[%emt 0:01:54]} 9. a4 {[%emt 0:02:55]} O-O {[%emt 0:09:20]} 10. Rd1 {[%emt 0:07:05]} Qa5 {[%emt 0:03:34]} 11. Nf3 {[%emt 0:04:11]} Rb8 {[%emt 0:03:53]} 12. d5 {[%emt 0:06:32]} Ne5 {[%emt 0:04:27]} 13. Nxe5 {[%emt 0:02:36]} dxe5 {[%emt 0:00:02]} 14. O-O {[%emt 0:04:46]} Bd7 {[%emt 0:05:36]} 15. f3 {[%emt 0:07:12]} Rfc8 {[%emt 0:02:35]} 16. Ra1 {[%emt 0:04:02]} Qb4 {[%emt 0:05:33]} 17. a5 {[%emt 0:00:29]} Be8 {[%emt 0:00:20]} 18. Rfc1 {[%emt 0:04:21]} Qd6 {[%emt 0:04:40]} 19. Na4 {[%emt 0:09:00]} Bxa4 {[%emt 0:02:33]} 20. Rxa4 {[%emt 0:00:11]} Qd7 {[%emt 0:03:44]} 21. Rac4 {[%emt 0:02:06]} Ne8 {[%emt 0:00:14]} 22. Qc3 {[%emt 0:06:30]} Rxc4 {[%emt 0:01:52]} 23. Qxc4 {[%emt 0:00:02]} h5 {[%emt 0:03:54]} 24. Bd1 {[%emt 0:03:01]} Nd6 {[%emt 0:01:43]} 25. Qc7 {[%emt 0:00:52]} Qe8 {[%emt 0:00:19]} 26. Qc2 {[%emt 0:02:51]} Qb5 {[%emt 0:02:32]} 27. Qd2 {[%emt 0:02:49]} Rc8 {[%emt 0:16:02]} 28. Rxc8+ {[%emt 0:01:35]} Nxc8 {[%emt 0:00:06]} 29. Be2 {[%emt 0:00:29]} Qa4 {[%emt 0:03:27]} 30. Bc5 {[%emt 0:02:28]} Kh7 {[%emt 0:01:04]} 31. Qb4 {[%emt 0:01:14]} Qc2 {[%emt 0:02:28]} 32. Bf1 {[%emt 0:02:32]} Bf6 {[%emt 0:03:40]} 33. Qc3 {[%emt 0:00:22]} Qd1 {[%emt 0:00:45]} 34. Qd3 {[%emt 0:00:34]} Qa1 {[%emt 0:02:58]} 35. b4 {[%emt 0:01:50]} Nd6 {[%emt 0:00:58]} 36. Bxd6 {[%emt 0:01:37]} exd6 {[%emt 0:00:02]} 37. b5 {[%emt 0:00:26]} Bd8 {[%emt 0:05:44]} 38. bxa6 {[%emt 0:00:08]} bxa6 {[%emt 0:00:01]} 39. Qxa6 {[%emt 0:00:19]} Bxa5 {[%emt 0:00:03]} 40. h3 {[%emt 0:01:10]} Qd4+ {[%emt 0:00:11]} 41. Kh2 {[%emt 0:00:29]} Bb6 {[%emt 0:10:34]} 0-1

[Event "XX Gran Hotel Bali-B 2023"]
[Site "Benidorm"]
[Date "2023.12.02"]
[Round "2.4"]
[White "Vladut, Matei"]
[Black "Galarreta Santana, Javier"]
[Result "1-0"]
[ECO "D78"]
[WhiteElo "1989"]
[BlackElo "1790"]
[Annotator "NA RC"]
[PlyCount "77"]
[EventDate "2023.12.02"]
[EventType "swiss"]
[EventCountry "ESP"]
[SourceTitle "playchess.com"]
[Source "ChessBase"]
[SourceQuality "1"]
[TimeControl "5400+30"]

1. g3 {[%emt 0:05:02]} Nf6 {[%emt 0:00:43]} 2. Bg2 {[%emt 0:00:03]} d5 {[%emt 0:00:40]} 3. c4 {[%emt 0:00:05]} c6 {[%emt 0:00:20]} 4. Nf3 {[%emt 0:00:38]} g6 {[%emt 0:00:15]} 5. O-O {[%emt 0:00:23]} Bg7 {[%emt 0:00:13]} 6. d4 {[%emt 0:00:30]} O-O {[%emt 0:00:15]} 7. Nc3 {[%emt 0:03:21]} Ne4 {[%emt 0:04:21]} 8. Qb3 {[%emt 0:02:46]} dxc4 {[%emt 0:07:53]} 9. Qxc4 {[%emt 0:00:04]} b5 {[%emt 0:00:25]} 10. Qd3 {[%emt 0:00:50]} Nxc3 {[%emt 0:00:18]} 11. bxc3 {[%emt 0:00:08]} Be6 {[%emt 0:00:22]} 12. a4 {[%emt 0:07:59]} Bc4 {[%emt 0:05:12]} 13. Qc2 {[%emt 0:01:02]} Nd7 {[%emt 0:03:18]} 14. Nd2 {[%emt 0:12:03]} Bxe2 {[%emt 0:02:27]} 15. Re1 {[%emt 0:00:13]} Bg4 {[%emt 0:00:22]} 16. axb5 {[%emt 0:18:38]} Rc8 {[%emt 0:00:09]} 17. bxc6 {[%emt 0:00:44]} Nb8 {[%emt 0:01:02]} 18. Qa4 {[%emt 0:16:28]} Be6 {[%emt 0:02:07]} 19. Qb5 {[%emt 0:06:16]} Rc7 {[%emt 0:02:04]} 20. Ra3 {[%emt 0:02:35]} Qc8 {[%emt 0:02:56]} 21. d5 {[%emt 0:00:21]} Bh3 {[%emt 0:01:41]} 22. Bh1 {[%emt 0:00:05]} Qf5 {[%emt 0:02:30]} 23. Qe2 {[%emt 0:01:49]} Rd8 {[%emt 0:01:34]} 24. c4 {[%emt 0:00:16]} e6 {[%emt 0:05:15]} 25. Be4 {[%emt 0:05:12]} Qf6 {[%emt 0:01:32]} 26. Ra2 {[%emt 0:02:15]} Qd4 {[%emt 0:07:23]} 27. Nf3 {[%emt 0:00:49]} Qc3 {[%emt 0:01:00]} 28. Bf4 {[%emt 0:01:04]} e5 {[%emt 0:00:19]} 29. Be3 {[%emt 0:02:11]} Bg4 {[%emt 0:06:45]} 30. Rc1 {[%emt 0:01:13]} Qb3 {[%emt 0:00:33]} 31. h3 {[%emt 0:00:36]} Bxf3 {[%emt 0:00:36]} 32. Bxf3 {[%emt 0:00:07]} f5 {[%emt 0:00:16]} 33. Rxa7 {[%emt 0:00:27]} Rxa7 {[%emt 0:00:29]} 34. Bxa7 {[%emt 0:00:02]} Qa3 {[%emt 0:01:01]} 35. Be3 {[%emt 0:00:05]} Na6 {[%emt 0:01:40]} 36. Bg2 {[%emt 0:00:20]} e4 {[%emt 0:01:03]} 37. Bf1 {[%emt 0:01:21]} Rb8 {[%emt 0:01:20]} 38. c5 {[%emt 0:00:31]} Bb2 {[%emt 0:02:49]} 39. Qxa6 {[%emt 0:01:36]} 1-0

[Event "XX Gran Hotel Bali-B 2023"]
[Site "Benidorm"]
[Date "2023.12.02"]
[Round "2.5"]
[White "San Juan Morigosa, Isaura"]
[Black "Perez Gonzalez, Daniel"]
[Result "0-1"]
[ECO "D20"]
[WhiteElo "1783"]
[BlackElo "1984"]
[Annotator "NA RC"]
[PlyCount "132"]
[EventDate "2023.12.02"]
[EventType "swiss"]
[EventCountry "ESP"]
[SourceTitle "playchess.com"]
[Source "ChessBase"]
[SourceQuality "1"]
[TimeControl "5400+30"]

1. d4 {[%emt 0:05:57]} d5 {[%emt 0:00:17]} 2. c4 {[%emt 0:00:07]} dxc4 {[%emt 0:00:07]} 3. Nc3 {[%emt 0:01:45]} a6 {[%emt 0:00:31]} 4. a4 {[%emt 0:00:50]} Nc6 {[%emt 0:00:30]} 5. Nf3 {[%emt 0:03:35]} e5 {[%emt 0:01:50]} 6. d5 {[%emt 0:02:00]} Na5 {[%emt 0:01:45]} 7. Nd2 {[%emt 0:30:17]} Nf6 {[%emt 0:02:21]} 8. e4 {[%emt 0:00:29]} Bb4 {[%emt 0:01:46]} 9. Qc2 {[%emt 0:01:53]} c6 {[%emt 0:18:06]} 10. dxc6 {[%emt 0:07:19]} Qd4 {[%emt 0:00:33]} 11. Be2 {[%emt 0:04:31]} bxc6 {[%emt 0:15:16]} 12. O-O {[%emt 0:00:13]} Bg4 {[%emt 0:03:51]} 13. Bxg4 {[%emt 0:09:36]} Nxg4 {[%emt 0:00:11]} 14. Nf3 {[%emt 0:00:06]} Qd3 {[%emt 0:05:08]} 15. Qxd3 {[%emt 0:00:28]} cxd3 {[%emt 0:00:01]} 16. Bd2 {[%emt 0:06:53]} Nc4 {[%emt 0:01:46]} 17. h3 {[%emt 0:00:19]} Nf6 {[%emt 0:01:46]} 18. Rac1 {[%emt 0:04:15]} Rc8 {[%emt 0:21:11]} 19. Nb1 {[%emt 0:19:27]} Nxd2 {[%emt 0:01:19]} 20. Nbxd2 {[%emt 0:00:00]} Bxd2 {[%emt 0:01:56]} 21. Nxd2 {[%emt 0:00:00]} Ke7 {[%emt 0:00:40]} 22. Rc5 {[%emt 0:00:00]} Nd7 {[%emt 0:02:00]} 23. Rc3 {[%emt 0:00:00]} Rhd8 {[%emt 0:00:37]} 24. Rfc1 {[%emt 0:00:00]} c5 {[%emt 0:06:03]} 25. b3 {[%emt 0:00:00]} f6 {[%emt 0:01:49]} 26. Rxd3 {[%emt 0:00:00]} Nf8 {[%emt 0:00:11]} 27. Rxd8 {[%emt 0:00:00]} Rxd8 {[%emt 0:00:00]} 28. Nc4 {[%emt 0:00:03]} Ne6 {[%emt 0:03:13]} 29. Nb6 {[%emt 0:01:05]} Rd3 {[%emt 0:00:58]} 30. Nd5+ {[%emt 0:00:55]} Kd6 {[%emt 0:00:44]} 31. Rc3 {[%emt 0:00:34]} Rxc3 {[%emt 0:01:12]} 32. Nxc3 {[%emt 0:00:07]} Nd4 {[%emt 0:00:02]} 33. Kf1 {[%emt 0:01:23]} Nxb3 {[%emt 0:00:09]} 34. Ke2 {[%emt 0:00:08]} c4 {[%emt 0:00:51]} 35. Ke3 {[%emt 0:01:17]} Kc5 {[%emt 0:00:53]} 36. Nd5 {[%emt 0:00:50]} Nd4 {[%emt 0:00:34]} 37. Kd2 {[%emt 0:00:23]} a5 {[%emt 0:01:57]} 38. g3 {[%emt 0:00:50]} f5 {[%emt 0:02:51]} 39. Nc3 {[%emt 0:00:54]} Nb3+ {[%emt 0:00:20]} 40. Ke3 {[%emt 0:00:11]} fxe4 {[%emt 0:01:22]} 41. Na2 {[%emt 0:00:15]} Kd6 {[%emt 0:01:25]} 42. Nc3 {[%emt 0:00:22]} Nc5 {[%emt 0:00:25]} 43. Nb5+ {[%emt 0:01:06]} Kd5 {[%emt 0:00:43]} 44. Nc3+ {[%emt 0:00:07]} Kc6 {[%emt 0:00:09]} 45. h4 {[%emt 0:00:22]} h5 {[%emt 0:00:41]} 46. Ke2 {[%emt 0:00:23]} Nd3 {[%emt 0:03:30]} 47. Nxe4 {[%emt 0:00:21]} Kd5 {[%emt 0:00:00]} 48. Ke3 {[%emt 0:00:43]} Nb2 {[%emt 0:00:00]} 49. Nc3+ {[%emt 0:00:05]} Kc5 {[%emt 0:00:00]} 50. Na2 {[%emt 0:00:16]} Nxa4 {[%emt 0:00:00]} 51. Ke4 {[%emt 0:00:53]} Kd6 {[%emt 0:00:00]} 52. f4 {[%emt 0:00:05]} exf4 {[%emt 0:00:00]} 53. Kxf4 {[%emt 0:03:22]} Nc5 {[%emt 0:00:56]} 54. Nc3 {[%emt 0:00:00]} Ke6 {[%emt 0:01:47]} 55. Kg5 {[%emt 0:00:00]} Ke5 {[%emt 0:00:16]} 56. Kxh5 {[%emt 0:00:00]} Ne4 {[%emt 0:00:08]} 57. Ne2 {[%emt 0:00:32]} a4 {[%emt 0:00:43]} 58. g4 {[%emt 0:00:19]} Ng3+ {[%emt 0:00:49]} 59. Nxg3 {[%emt 0:01:04]} a3 {[%emt 0:00:00]} 60. Kg6 {[%emt 0:00:29]} a2 {[%emt 0:00:06]} 61. Nf5 {[%emt 0:00:43]} a1=Q {[%emt 0:02:45]} 62. Nxg7 {[%emt 0:01:23]} Qa6+ {[%emt 0:00:00]} 63. Kh7 {[%emt 0:00:30]} c3 {[%emt 0:00:00]} 64. g5 {[%emt 0:00:00]} c2 {[%emt 0:00:00]} 65. h5 {[%emt 0:00:00]} c1=Q {[%emt 0:00:00]} 66. g6 {[%emt 0:00:00]} Qg5 {[%emt 0:00:00]} 0-1

[Event "XX Gran Hotel Bali-B 2023"]
[Site "Benidorm"]
[Date "2023.12.02"]
[Round "2.6"]
[White "Fabre Massana, Miquel"]
[Black "Nechifor, David"]
[Result "1-0"]
[ECO "B13"]
[WhiteElo "1982"]
[BlackElo "1717"]
[Annotator "NA RC"]
[PlyCount "99"]
[EventDate "2023.12.02"]
[EventType "swiss"]
[EventCountry "ESP"]
[SourceTitle "playchess.com"]
[Source "ChessBase"]
[SourceQuality "1"]
[TimeControl "5400+30"]

1. e4 {[%emt 0:00:05]} c6 {[%emt 0:00:32]} 2. d4 {[%emt 0:00:12]} d5 {[%emt 0:00:31]} 3. exd5 {[%emt 0:00:15]} cxd5 {[%emt 0:00:30]} 4. c4 {[%emt 0:00:16]} Nf6 {[%emt 0:00:30]} 5. Nc3 {[%emt 0:00:30]} Nc6 {[%emt 0:00:29]} 6. Nf3 {[%emt 0:03:49]} Bg4 {[%emt 0:00:42]} 7. cxd5 {[%emt 0:02:37]} Nxd5 {[%emt 0:00:29]} 8. Be2 {[%emt 0:00:46]} e6 {[%emt 0:01:34]} 9. O-O {[%emt 0:03:18]} Be7 {[%emt 0:02:41]} 10. Nxd5 {[%emt 0:04:45]} Qxd5 {[%emt 0:04:50]} 11. Be3 {[%emt 0:02:37]} O-O {[%emt 0:01:52]} 12. h3 {[%emt 0:04:15]} Bh5 {[%emt 0:06:11]} 13. Ne5 {[%emt 0:05:41]} Bxe2 {[%emt 0:13:08]} 14. Nxc6 {[%emt 0:06:19]} Qxc6 {[%emt 0:02:17]} 15. Qxe2 {[%emt 0:00:22]} Rac8 {[%emt 0:02:56]} 16. Rac1 {[%emt 0:02:09]} Qd5 {[%emt 0:01:46]} 17. b3 {[%emt 0:01:23]} Ba3 {[%emt 0:02:56]} 18. Rc4 {[%emt 0:01:52]} b5 {[%emt 0:02:58]} 19. Rc2 {[%emt 0:00:35]} Rxc2 {[%emt 0:10:27]} 20. Qxc2 {[%emt 0:00:04]} Qd7 {[%emt 0:02:27]} 21. Rd1 {[%emt 0:02:49]} Rc8 {[%emt 0:01:28]} 22. Qd2 {[%emt 0:00:46]} Qc7 {[%emt 0:03:44]} 23. Qe2 {[%emt 0:04:29]} Qb7 {[%emt 0:10:00]} 24. Qh5 {[%emt 0:02:47]} Qd5 {[%emt 0:05:12]} 25. Qxd5 {[%emt 0:01:54]} exd5 {[%emt 0:00:41]} 26. Kf1 {[%emt 0:00:54]} Rc2 {[%emt 0:01:15]} 27. Rd2 {[%emt 0:02:02]} Rxd2 {[%emt 0:01:01]} 28. Bxd2 {[%emt 0:00:03]} Bd6 {[%emt 0:00:28]} 29. Ke2 {[%emt 0:00:26]} Kf8 {[%emt 0:00:26]} 30. Kf3 {[%emt 0:01:41]} Ke7 {[%emt 0:00:38]} 31. g4 {[%emt 0:01:49]} Ke6 {[%emt 0:01:30]} 32. Bf4 {[%emt 0:00:41]} Bxf4 {[%emt 0:03:25]} 33. Kxf4 {[%emt 0:00:03]} g6 {[%emt 0:00:30]} 34. Kg5 {[%emt 0:01:11]} f5 {[%emt 0:02:08]} 35. Kh6 {[%emt 0:01:04]} Kf6 {[%emt 0:06:35]} 36. f4 {[%emt 0:01:17]} b4 {[%emt 0:01:20]} 37. Kxh7 {[%emt 0:02:43]} g5 {[%emt 0:00:09]} 38. fxg5+ {[%emt 0:00:28]} Kxg5 {[%emt 0:00:06]} 39. gxf5 {[%emt 0:00:11]} Kxf5 {[%emt 0:00:07]} 40. h4 {[%emt 0:01:02]} Ke4 {[%emt 0:02:08]} 41. h5 {[%emt 0:00:25]} Kxd4 {[%emt 0:00:04]} 42. Kg6 {[%emt 0:00:30]} Kc3 {[%emt 0:00:06]} 43. h6 {[%emt 0:00:22]} d4 {[%emt 0:00:43]} 44. h7 {[%emt 0:00:21]} d3 {[%emt 0:00:06]} 45. h8=Q+ {[%emt 0:00:17]} Kc2 {[%emt 0:00:08]} 46. Qc8+ {[%emt 0:00:35]} Kb2 {[%emt 0:00:40]} 47. Qd7 {[%emt 0:00:17]} Kc2 {[%emt 0:01:37]} 48. Qc6+ {[%emt 0:00:29]} Kd1 {[%emt 0:01:16]} 49. Qc4 {[%emt 0:01:25]} d2 {[%emt 0:00:26]} 50. Qxb4 {[%emt 0:01:01]} 1-0

[Event "XX Gran Hotel Bali-B 2023"]
[Site "Benidorm"]
[Date "2023.12.02"]
[Round "2.7"]
[White "Sempere Domenech, Abel"]
[Black "Urios Hernandez, Ramon"]
[Result "1-0"]
[ECO "E92"]
[WhiteElo "1981"]
[BlackElo "1775"]
[Annotator "NA RC"]
[PlyCount "125"]
[EventDate "2023.12.02"]
[EventType "swiss"]
[EventCountry "ESP"]
[SourceTitle "playchess.com"]
[Source "ChessBase"]
[SourceQuality "1"]
[TimeControl "5400+30"]

1. d4 {[%emt 0:00:37]} Nf6 {[%emt 0:00:18]} 2. c4 {[%emt 0:00:08]} g6 {[%emt 0:00:30]} 3. Nc3 {[%emt 0:00:04]} Bg7 {[%emt 0:00:16]} 4. e4 {[%emt 1:31:41]} d6 {[%emt 0:00:48]} 5. Be2 {[%emt 0:00:00]} O-O {[%emt 0:01:16]} 6. Nf3 {[%emt 0:00:00]} e5 {[%emt 1:30:22]} 7. d5 {[%emt 0:00:00]} Nbd7 {[%emt 0:00:00]} 8. Bg5 {[%emt 0:00:00]} h6 {[%emt 0:00:00]} 9. Bh4 {[%emt 0:00:00]} Nc5 {[%emt 0:00:00]} 10. Nd2 {[%emt 0:00:00]} a5 {[%emt 0:00:00]} 11. O-O {[%emt 0:00:00]} Bd7 {[%emt 0:00:00]} 12. b3 {[%emt 0:00:00]} Qe8 {[%emt 0:00:00]} 13. a3 {[%emt 0:00:00]} Nh7 {[%emt 0:00:00]} 14. Nb5 {[%emt 0:00:00]} Bxb5 {[%emt 0:00:00]} 15. cxb5 {[%emt 0:00:00]} Bf6 {[%emt 0:00:00]} 16. Bxf6 {[%emt 0:00:00]} Nxf6 {[%emt 0:00:00]} 17. Qc2 {[%emt 0:00:00]} Qb8 {[%emt 0:00:00]} 18. b4 {[%emt 0:00:00]} axb4 {[%emt 0:00:00]} 19. axb4 {[%emt 0:00:00]} Rxa1 {[%emt 0:00:00]} 20. Rxa1 {[%emt 0:00:00]} Ncd7 {[%emt 0:00:00]} 21. Rc1 {[%emt 0:00:00]} Ne8 {[%emt 0:00:00]} 22. Qc3 {[%emt 0:00:00]} Nb6 {[%emt 0:00:00]} 23. h4 {[%emt 0:00:00]} Qd8 {[%emt 0:00:00]} 24. Qg3 {[%emt 0:00:00]} Kh7 {[%emt 0:00:00]} 25. h5 {[%emt 0:00:00]} Qg5 {[%emt 0:00:00]} 26. hxg6+ {[%emt 0:00:00]} fxg6 {[%emt 0:00:00]} 27. Qxg5 {[%emt 0:00:00]} hxg5 {[%emt 0:00:00]} 28. Bg4 {[%emt 0:00:00]} Rf7 {[%emt 0:00:00]} 29. Be6 {[%emt 0:00:00]} Rf4 {[%emt 0:00:00]} 30. g3 {[%emt 0:00:00]} Rf8 {[%emt 0:00:00]} 31. Kg2 {[%emt 0:00:00]} Kg7 {[%emt 0:00:00]} 32. Nb3 {[%emt 0:00:00]} Kf6 {[%emt 0:00:00]} 33. Na5 {[%emt 0:00:00]} Ng7 {[%emt 0:01:13]} 34. Bg4 {[%emt 0:00:00]} Na8 {[%emt 0:03:31]} 35. Ra1 {[%emt 0:00:00]} Rb8 {[%emt 0:00:46]} 36. Nc4 {[%emt 0:00:00]} Ke7 {[%emt 0:00:53]} 37. Ra7 {[%emt 0:00:00]} b6 {[%emt 0:01:00]} 38. Nd2 {[%emt 0:00:00]} Nh5 {[%emt 0:00:54]} 39. Ra1 {[%emt 0:00:00]} Nf6 {[%emt 0:00:02]} 40. Be6 {[%emt 0:00:00]} Rh8 {[%emt 0:00:32]} 41. Nf3 {[%emt 0:00:00]} Nxe4 {[%emt 0:00:13]} 42. Rh1 {[%emt 0:01:24]} Rf8 {[%emt 0:03:11]} 43. Rh7+ {[%emt 0:00:18]} Kf6 {[%emt 0:00:07]} 44. Nh2 {[%emt 0:00:38]} g4 {[%emt 0:00:49]} 45. Nxg4+ {[%emt 0:00:36]} Kg5 {[%emt 0:00:04]} 46. f3 {[%emt 0:05:34]} Nc3 {[%emt 0:00:19]} 47. Nf2 {[%emt 0:00:34]} Kf6 {[%emt 0:02:24]} 48. g4 {[%emt 0:00:49]} g5 {[%emt 0:01:16]} 49. Bf5 {[%emt 0:02:37]} e4 {[%emt 0:01:55]} 50. Nxe4+ {[%emt 0:02:08]} Nxe4 {[%emt 0:00:04]} 51. Bxe4 {[%emt 0:00:12]} Ke5 {[%emt 0:00:08]} 52. Kg3 {[%emt 0:01:38]} Kd4 {[%emt 0:00:05]} 53. Rg7 {[%emt 0:00:19]} Kc4 {[%emt 0:00:10]} 54. Rxg5 {[%emt 0:00:30]} Kxb4 {[%emt 0:00:03]} 55. Bd3 {[%emt 0:00:31]} Kc3 {[%emt 0:00:48]} 56. Bf5 {[%emt 0:00:42]} Rd8 {[%emt 0:00:30]} 57. Be6 {[%emt 0:00:33]} Kb4 {[%emt 0:00:11]} 58. Rg8 {[%emt 0:00:11]} Rxg8 {[%emt 0:01:28]} 59. Bxg8 {[%emt 0:00:01]} Kxb5 {[%emt 0:00:01]} 60. g5 {[%emt 0:00:13]} c5 {[%emt 0:00:10]} 61. g6 {[%emt 0:00:13]} c4 {[%emt 0:02:55]} 62. g7 {[%emt 0:00:08]} c3 {[%emt 0:00:37]} 63. Bh7 {[%emt 0:00:02]} 1-0

[Event "XX Gran Hotel Bali-B 2023"]
[Site "Benidorm"]
[Date "2023.12.02"]
[Round "2.8"]
[White "Tudela Gonzalez, Victor"]
[Black "Patel, Palak"]
[Result "1-0"]
[ECO "A85"]
[WhiteElo "1957"]
[BlackElo "1779"]
[Annotator "NA RC"]
[PlyCount "87"]
[EventDate "2023.12.02"]
[EventType "swiss"]
[EventCountry "ESP"]
[SourceTitle "playchess.com"]
[Source "ChessBase"]
[SourceQuality "1"]
[TimeControl "5400+30"]

1. d4 {[%emt 0:00:36]} d5 {[%emt 0:01:32]} 2. c4 {[%emt 0:00:37]} c6 {[%emt 0:00:14]} 3. Nf3 {[%emt 0:00:47]} e6 {[%emt 0:02:20]} 4. e3 {[%emt 0:00:45]} Nd7 {[%emt 0:03:34]} 5. b3 {[%emt 0:01:22]} Bd6 {[%emt 0:02:51]} 6. Bb2 {[%emt 0:01:03]} f5 {[%emt 0:14:47]} 7. Bd3 {[%emt 0:02:43]} Ngf6 {[%emt 0:00:11]} 8. O-O {[%emt 0:03:35]} Ne4 {[%emt 0:00:45]} 9. Nc3 {[%emt 0:03:14]} O-O {[%emt 0:00:31]} 10. Ne2 {[%emt 0:02:25]} Qf6 {[%emt 0:02:42]} 11. Ne1 {[%emt 0:29:13]} Qh6 {[%emt 0:10:27]} 12. f4 {[%emt 0:01:01]} Ndf6 {[%emt 0:00:14]} 13. h3 {[%emt 0:07:51]} Bd7 {[%emt 0:02:05]} 14. Nf3 {[%emt 0:00:21]} Be8 {[%emt 0:00:14]} 15. Qe1 {[%emt 0:02:28]} Bh5 {[%emt 0:12:10]} 16. Qh4 {[%emt 0:05:16]} Qg6 {[%emt 0:05:32]} 17. Ne5 {[%emt 0:00:56]} Qe8 {[%emt 0:00:40]} 18. Kh1 {[%emt 0:10:08]} Be7 {[%emt 0:00:27]} 19. Qe1 {[%emt 0:00:19]} Bxe2 {[%emt 0:03:58]} 20. Bxe2 {[%emt 0:00:10]} Nh5 {[%emt 0:00:27]} 21. Kh2 {[%emt 0:02:34]} Nhg3 {[%emt 0:08:06]} 22. Rf3 {[%emt 0:00:11]} Bh4 {[%emt 0:01:27]} 23. Bd3 {[%emt 0:02:41]} Qd8 {[%emt 0:05:32]} 24. Rc1 {[%emt 0:07:36]} Nh5 {[%emt 0:00:43]} 25. Qb4 {[%emt 0:00:29]} Qc7 {[%emt 0:08:33]} 26. g4 {[%emt 0:00:44]} a5 {[%emt 0:02:41]} 27. Qa4 {[%emt 0:01:24]} fxg4 {[%emt 0:03:29]} 28. hxg4 {[%emt 0:00:07]} Bg3+ {[%emt 0:01:24]} 29. Kg2 {[%emt 0:01:10]} Nhf6 {[%emt 0:01:46]} 30. Rxg3 {[%emt 0:05:07]} Nxg3 {[%emt 0:00:43]} 31. Kxg3 {[%emt 0:00:01]} Nd7 {[%emt 0:01:38]} 32. Rh1 {[%emt 0:00:54]} g6 {[%emt 0:00:08]} 33. Nf3 {[%emt 0:00:15]} Nf6 {[%emt 0:00:33]} 34. Ba3 {[%emt 0:02:09]} Rfe8 {[%emt 0:00:21]} 35. Bc1 {[%emt 0:01:56]} b5 {[%emt 0:00:48]} 36. Qa3 {[%emt 0:01:09]} bxc4 {[%emt 0:00:46]} 37. bxc4 {[%emt 0:00:11]} dxc4 {[%emt 0:00:06]} 38. Bxc4 {[%emt 0:00:21]} Ne4+ {[%emt 0:01:20]} 39. Kg2 {[%emt 0:00:13]} Rab8 {[%emt 0:01:32]} 40. Qd3 {[%emt 0:00:31]} Nf6 {[%emt 0:00:25]} 41. Ng5 {[%emt 0:01:15]} Qd7 {[%emt 0:01:35]} 42. f5 {[%emt 0:01:21]} Nd5 {[%emt 0:00:36]} 43. Rxh7 {[%emt 0:01:08]} Qd6 {[%emt 0:00:29]} 44. f6 {[%emt 0:00:25]} 1-0

[Event "XX Gran Hotel Bali-B 2023"]
[Site "Benidorm"]
[Date "2023.12.02"]
[Round "2.9"]
[White "Amoros Moran, Jose Joaquin"]
[Black "Navarro Rico, Lluis"]
[Result "0-1"]
[ECO "C02"]
[WhiteElo "1779"]
[BlackElo "1937"]
[Annotator "NA RC"]
[PlyCount "54"]
[EventDate "2023.12.02"]
[EventType "swiss"]
[EventCountry "ESP"]
[SourceTitle "playchess.com"]
[Source "ChessBase"]
[SourceQuality "1"]
[TimeControl "5400+30"]

1. e4 {[%emt 0:04:07]} e6 {[%emt 0:00:06]} 2. d4 {[%emt 0:00:06]} d5 {[%emt 0:00:04]} 3. e5 {[%emt 0:00:36]} c5 {[%emt 0:00:03]} 4. c3 {[%emt 0:00:07]} Qb6 {[%emt 0:00:06]} 5. Nf3 {[%emt 0:00:10]} Nc6 {[%emt 0:00:04]} 6. Bd3 {[%emt 0:01:10]} cxd4 {[%emt 0:00:19]} 7. O-O {[%emt 0:00:51]} Bd7 {[%emt 0:00:09]} 8. Re1 {[%emt 0:01:16]} Rc8 {[%emt 0:03:08]} 9. Nbd2 {[%emt 0:05:57]} dxc3 {[%emt 0:00:29]} 10. bxc3 {[%emt 0:00:03]} Bc5 {[%emt 0:00:12]} 11. Rb1 {[%emt 0:00:08]} Qc7 {[%emt 0:02:00]} 12. Nb3 {[%emt 0:07:50]} Bb6 {[%emt 0:01:00]} 13. Nbd4 {[%emt 0:03:58]} Nxd4 {[%emt 0:03:28]} 14. Nxd4 {[%emt 0:03:41]} Ne7 {[%emt 0:03:17]} 15. Bd2 {[%emt 0:09:23]} Qc5 {[%emt 0:09:35]} 16. Qe2 {[%emt 0:04:52]} a6 {[%emt 0:00:24]} 17. Be3 {[%emt 0:04:28]} Qc7 {[%emt 0:05:44]} 18. Rxb6 {[%emt 0:07:52]} Qxb6 {[%emt 0:01:11]} 19. Nf5 {[%emt 0:00:23]} Qa5 {[%emt 0:00:33]} 20. Nxg7+ {[%emt 0:16:21]} Kd8 {[%emt 0:00:37]} 21. Rb1 {[%emt 0:02:08]} b5 {[%emt 0:00:37]} 22. Qg4 {[%emt 0:05:06]} Rc6 {[%emt 0:01:27]} 23. Qg5 {[%emt 0:11:43]} Qxc3 {[%emt 0:03:54]} 24. Bf1 {[%emt 0:01:12]} Qc2 {[%emt 0:01:13]} 25. Qf6 {[%emt 0:04:43]} Qxb1 {[%emt 0:01:31]} 26. Nxe6+ {[%emt 0:00:09]} fxe6 {[%emt 0:01:13]} 27. Qxh8+ {[%emt 0:00:03]} Be8 {[%emt 0:00:38]} 0-1